Cogmind - Beta 11.1 @@@ ROGUE MODE // 2022.09.27 @ 14:50:55 Player: deadnoob Result: Self-destructed Performance ------------- Evolutions (7) 3500 Regions Visited (29) 5800 Robots Destroyed (186) 930 Value Destroyed (6971) 6971 Prototype IDs (62) 1240 Alien Tech Used (4) 800 Bonus (990) 990 TOTAL SCORE: 20231 Bonus ------- High Alert Combat Kills 465 Follower Combat Kills 3406 Aligned with FarCom 300 Met Data Miner 300 Built Enhanced Grunts 300 Found Hidden Lab 3000 Used Core Reset Matrix 3000 Pursued by Intercept 500 Friendly Fire -10281 Cogmind --------- Core Integrity 151/1300 Matter 88/300 Energy 339/495 System Corruption 34% Temperature Cool (0) Movement Treading (170) Location -3/Research Parts ------- > --- POWER (3) -------- Antimatter Reactor Light Antimatter Reactor > --- PROPULSION (8) --- Armored Heavy Treads Armored Heavy Treads Flexi-carbon Leg Biometal Leg > --- UTILITY (10) ----- Advanced Heat Sink Experimental Heat Sink Huge Storage Unit Small Battery Advanced Visual Processing Unit Experimental Targeting Computer Experimental Targeting Computer Advanced Transmission Jammer > --- WEAPON (2) ------- (None) > --- INVENTORY (25) --- Fusion Compressor Light Antimatter Reactor Light Particle Reactor Advanced Coolant Injector Quantum Capacitor Peak State ------------ > --- POWER ------------ Fusion Compressor Antimatter Reactor Antimatter Reactor > --- PROPULSION ------- Armored Heavy Treads Armored Heavy Treads Flexi-carbon Leg Flexi-carbon Leg Biometal Leg Wheel > --- UTILITY ---------- Advanced Heat Sink Experimental Heat Sink Advanced Coolant Injector Experimental Targeting Computer Advanced Weapon Cycler Advanced Transmission Jammer Layered Heavy Armor Plating Experimental Powered Armor Quantum Router > --- WEAPON ----------- Potential Cannon > --- INVENTORY -------- Quantum Capacitor Enhanced Nova Cannon Linked Autogun [Rating: 165] Favorites ----------- Power Light Deuterium Engine Engine Light Deuterium Engine Power Core Light Nuclear Core Reactor Antimatter Reactor Propulsion Improved VTOL Module Treads Light Treads Leg Flexi-carbon Leg Wheel Wheel Hover Unit Improved Antigrav System Flight Unit Improved VTOL Module Utility Medium Storage Unit Device Improved Heat Sink Storage Medium Storage Unit Processor Improved Signal Interpreter Hackware Hacking Suite Protection Improved Light Armor Plating Weapon Advanced Beam Cannon Energy Gun Small Laser Energy Cannon Advanced Beam Cannon Ballistic Gun Light Assault Rifle Launcher Grenade Launcher Special Weapon Improved Remote Datajack Impact Weapon Flail Slashing Weapon Scythe Piercing Weapon Kinetic Spear Build | -11 -10 -10 -9 -9 -9 -8 -8 -8 -7 -7 -7 -7 -6 -6 -6 -6 -6 -5 -5 -5 -5 -5 -5 -4 -4 -4 -4 -4 -3 ------- Run | Scr Mat Min Mat Min Exi Min Mat Sto Fac Low Low Zio Pro Fac Low Low Dat Pro Fac Ext Cet Arc Hub Fac Was Fac Arm Lab Res Slots Evolved 14 | . . . 2 . . . 2 . 2 . . . . 2 . . . . 2 . . . . 2 . . . . 2 Power 1 | . . . . . . . . . 1 . . . . . . . . . . . . . . . . . . . . Propulsion 5 | . . . 1 . . . . . . . . . . 1 . . . . 1 . . . . . . . . . 2 Utility 8 | . . . 1 . . . 2 . 1 . . . . 1 . . . . 1 . . . . 2 . . . . . Weapon . | . . . . . . . . . . . . . . . . . . . . . . . . . . . . . . Parts Attached 422 | . 15 1 20 3 . 2 19 30 28 18 11 7 12 32 15 8 . 11 18 21 18 . 12 12 3 6 12 3 85 Power 48 | . . . 2 . . 1 2 7 7 . . . 1 4 . 2 . . 1 . 3 . 1 2 . . 3 . 12 Engine 18 | . . . 1 . . . 2 4 3 . . . . 4 . 2 . . . . . . 1 . . . . . 1 Core 12 | . . . 1 . . 1 . 3 4 . . . 1 . . . . . 1 . . . . . . . . . 1 Reactor 18 | . . . . . . . . . . . . . . . . . . . . . 3 . . 2 . . 3 . 10 Propulsion 50 | . 3 . 4 1 . . 5 4 3 . . . . 4 . 1 . . 2 . 3 . 3 2 . . 3 1 11 Treads 19 | . 2 . 4 1 . . 5 4 . . . . . . . . . . . . . . . . . . . . 3 Leg 4 | . 1 . . . . . . . . . . . . . . . . . . . . . . . . . . . 3 Wheel 1 | . . . . . . . . . . . . . . . . . . . . . . . . . . . . . 1 Hover 2 | . . . . . . . . . . . . . . . . . . . . . . . 1 . . . . . 1 Flight 24 | . . . . . . . . . 3 . . . . 4 . 1 . . 2 . 3 . 2 2 . . 3 1 3 Utility 200 | . 1 1 5 1 . 1 4 7 13 18 10 3 4 23 11 5 . 11 12 7 6 . 4 6 2 4 1 2 38 Device 131 | . 1 1 2 1 . 1 1 2 7 13 8 1 3 17 11 5 . 11 6 3 5 . 1 4 1 4 1 . 21 Storage 12 | . . . 1 . . . . 1 . 1 . . . 2 . . . . . . 1 . 1 . . . . . 5 Processor 22 | . . . . . . . 2 1 . . . . . 1 . . . . 5 4 . . . 2 . . . . 7 Hackware 13 | . . . . . . . . . 4 . . 1 . 3 . . . . 1 . . . 2 . . . . 1 1 Protection 22 | . . . 2 . . . 1 3 2 4 2 1 1 . . . . . . . . . . . 1 . . 1 4 Artifact . | . . . . . . . . . . . . . . . . . . . . . . . . . . . . . . Weapon 124 | . 11 . 9 1 . . 8 12 5 . 1 4 7 1 4 . . . 3 14 6 . 4 2 1 2 5 . 24 Energy Gun 9 | . 4 . . . . . . 1 . . . . . . . . . . . . . . . . . . . . 4 Energy Cannon 37 | . . . 2 . . . 2 4 1 . 1 . 5 1 3 . . . . 2 1 . 2 1 . 1 2 . 9 Ballistic Gun 20 | . 5 . 3 1 . . 3 3 . . . . . . . . . . . . . . . . . . . . 5 Ballistic Cannon . | . . . . . . . . . . . . . . . . . . . . . . . . . . . . . . Launcher 20 | . 2 . 1 . . . 3 3 1 . . 2 2 . 1 . . . . 1 3 . . . . . . . 1 Special Weapon 14 | . . . 3 . . . . . . . . 1 . . . . . . 1 6 1 . . . 1 . 1 . . Impact Weapon 3 | . . . . . . . . 1 2 . . . . . . . . . . . . . . . . . . . . Slashing Weapon 2 | . . . . . . . . . 1 . . 1 . . . . . . . . . . . . . . . . . Piercing Weapon 19 | . . . . . . . . . . . . . . . . . . . 2 5 1 . 2 1 . 1 2 . 5 Special Melee Weapon . | . . . . . . . . . . . . . . . . . . . . . . . . . . . . . . Unidentified Prototypes 23 | . . . . . . . . 4 1 1 . 3 . 1 . 1 . . 1 . . . . . . . 2 3 6 Corrupted Parts 1 | . . . . . . . . . . . . . . . . . . . . . . . . . . . . . 1 System Corruption 1 | . . . . . . . . . . . . . . . . . . . . . . . . . . . . . 1 Parts Lost 50 | . 1 . . 1 . . . 3 . . . . 3 . . . . . . 1 3 . 4 . . . 5 1 28 Power 10 | . . . . . . . . . . . . . 1 . . . . . . . 2 . 1 . . . 2 . 4 Propulsion 17 | . . . . 1 . . . 1 . . . . 1 . . . . . . 1 1 . 1 . . . 2 1 8 Utility 16 | . . . . . . . . 2 . . . . 1 . . . . . . . . . 2 . . . 1 . 10 Weapon 7 | . 1 . . . . . . . . . . . . . . . . . . . . . . . . . . . 6 Highest Loss Streak 19 | . 1 . . 1 . . . 2 . . . . 2 . . . . . . 1 2 . 3 . . . 4 1 19 To Critical Strikes . | . . . . . . . . . . . . . . . . . . . . . . . . . . . . . . Average Slot Usage (%) 88 | . 93 98 100 99 100 100 98 99 99 91 89 92 91 74 68 69 75 75 91 84 87 94 86 86 92 94 93 79 70 Engine 4 | . 14 14 4 . . . . 6 2 7 7 7 6 7 6 6 12 12 8 5 . . . 3 . . . . . Core 4 | . . . 6 11 11 11 8 2 12 7 7 7 6 2 . . . . 2 5 1 . . . . . . . 1 Reactor 2 | . . . . . . . . . . . . . . . . . . . . . 3 11 10 6 10 10 9 4 8 Treads 11 | . 11 28 33 32 33 33 27 27 . . . . . . . . . . . . . . . . . . . . 5 Leg 1 | . 16 . . . . . . . . . . . . . . . . . . . . . . . . . . . 7 Flight 12 | . . . . . . . . . 22 23 23 23 22 23 26 26 31 31 29 29 28 33 26 24 25 25 24 20 3 Device 12 | . 8 12 17 11 11 11 9 7 6 22 20 23 22 12 7 8 6 6 5 4 11 16 16 21 21 20 19 17 14 Storage 7 | . 14 14 11 11 11 11 9 9 . 2 7 7 7 6 6 6 6 6 5 5 4 5 10 10 5 5 5 4 4 Processor 8 | . . . . . . . 16 19 11 7 7 7 7 10 6 6 6 6 21 15 15 11 . 5 10 10 10 9 6 Hackware 4 | . . . . . . . . . 25 1 . . . . 6 6 6 6 8 11 11 11 15 10 10 10 10 13 4 Protection 4 | . . . 4 11 11 11 9 9 . 5 5 7 6 . . . . . . . . . . . 2 5 4 . 3 Energy Cannon 4 | . . . 10 15 11 11 9 8 2 5 . . 1 2 . . . . . . 2 . . . . . . 2 2 Ballistic Gun 3 | . 13 14 7 6 11 11 8 7 . . . . . . . . . . . . . . . . . . . . . Slashing Weapon 1 | . . . . . . . . . 6 7 7 7 7 6 6 6 6 6 . . . . . . . . . . . Piercing Weapon 1 | . . . . . . . . . . . . . . . . . . . 7 4 1 . 4 4 5 5 4 4 . Naked Turns . | . . . . . . . . . . . . . . . . . . . . . . . . . . . . . . Heaviest Build 179 | 13 15 14 57 57 54 54 63 63 59 27 27 27 35 36 39 44 23 44 35 28 45 40 45 50 50 50 53 41 179 Greatest Support 120 | 20 40 40 66 66 63 63 63 72 60 27 27 27 27 31 18 23 23 23 28 33 44 44 47 50 50 50 55 50 120 Greatest Overweight (x) 4 | . . . . . . . . . 3 . 1 . 2 1 2 2 . 1 1 1 1 . 1 . . . . . 4 Average Overweight (x) . | . . . . . . . . . . . . . . . . . . . . . . . . . . . . . . Largest Inventory Capacity 25 | . 8 8 20 20 20 20 20 20 20 10 10 10 10 10 10 10 10 10 10 10 10 10 10 10 10 10 10 10 25 Average Capacity 13 | . 8 8 17 20 20 20 20 20 5 6 10 10 10 9 10 10 10 10 10 10 9 10 10 10 10 10 10 10 14 Most Carried 20 | . 8 8 20 20 20 20 20 20 20 10 10 10 10 10 10 10 8 8 10 10 10 8 7 10 10 10 10 10 10 Average Carried 11 | . 7 8 12 19 19 19 19 19 5 5 8 9 9 9 9 9 8 7 9 9 6 8 6 9 9 9 8 8 5 Final Capacity 25 | 8 8 8 20 20 20 20 20 20 5 10 10 10 10 10 10 10 10 10 10 10 10 10 10 10 10 10 10 10 25 Final Carried 20 | 6 8 8 20 20 20 20 20 20 5 7 10 10 10 10 10 8 8 8 10 9 8 8 7 10 9 10 9 10 6 Class Distribution -------------------- 27% | Scavenger-Mutant 23% | Mutant 15% | Scavenger-Sprinter 9% | Sprinter 7% | Hacker-Sprinter 3% | Hacker-Mutant Dominant Class ---------------- Mutant | -10/Materials Mutant | -10/Mines Mutant | -9/Materials Scavenger-Mutant | -9/Mines Scavenger-Mutant | -9/Exiles Scavenger-Mutant | -8/Mines Scavenger-Mutant | -8/Materials Mutant | -8/Storage Hacker-Sprinter | -7/Factory Sprinter | -7/Lower Caves Scavenger-Sprinter | -7/Lower Caves Scavenger-Sprinter | -7/Zion Scavenger-Sprinter | -6/Proximity Caves Scavenger-Sprinter | -6/Factory Sprinter | -6/Lower Caves Sprinter | -6/Lower Caves Sprinter | -6/Data Miner Sprinter | -5/Proximity Caves Hacker-Scout | -5/Factory Commander-Sprinter | -5/Extension Commander-Mutant | -5/Cetus Scavenger-Sprinter | -5/Archives Hacker-Sprinter | -5/Hub_04(d) Scavenger-Sprinter | -4/Factory Scavenger-Sprinter | -4/Waste Scavenger-Sprinter | -4/Factory Scavenger-Sprinter | -4/Armory Hacker-Sprinter | -4/Lab Scavenger-Mutant | -3/Research Resources | -11 -10 -10 -9 -9 -9 -8 -8 -8 -7 -7 -7 -7 -6 -6 -6 -6 -6 -5 -5 -5 -5 -5 -5 -4 -4 -4 -4 -4 -3 ----------- Run | Scr Mat Min Mat Min Exi Min Mat Sto Fac Low Low Zio Pro Fac Low Low Dat Pro Fac Ext Cet Arc Hub Fac Was Fac Arm Lab Res Matter Collected 6956 | 200 278 57 346 63 . 20 324 643 236 581 383 36 203 56 555 161 . 280 212 511 354 . 118 79 71 10 144 . 1035 Remotely 1269 | . . . . . . . . . 189 559 383 28 110 . . . . . . . . . . . . . . . . Salvage Created 8331 | . 554 91 477 224 . 189 995 1052 47 501 273 . 106 56 359 123 . 160 293 632 276 . 319 79 64 47 11 . 1403 Parts 442 | . 39 3 31 12 . 11 63 59 1 7 7 . 12 8 8 6 . 10 22 27 23 . 10 9 2 3 3 . 66 Haulers Intercepted 7 | . . . 2 . . . 2 2 . . . . . . . . . . 1 . . . . . . . . . . Recyclers Shooed 1 | . . 1 . . . . . . . . . . . . . . . . . . . . . . . . . . . Parts Field Recycled 102 | . . . . . . . . . . . . . . 28 17 28 . 21 8 . . . . . . . . . . Retrieved Matter 1009 | . . . . . . . . . . . . . . 534 97 105 . 32 241 . . . . . . . . . . Parts Self-Destructed 29 | . . . . . . . . . . 4 10 . 4 . . 4 . 7 . . . . . . . . . . . Prevented . | . . . . . . . . . . . . . . . . . . . . . . . . . . . . . . Kills | -11 -10 -10 -9 -9 -9 -8 -8 -8 -7 -7 -7 -7 -6 -6 -6 -6 -6 -5 -5 -5 -5 -5 -5 -4 -4 -4 -4 -4 -3 ------- Run | Scr Mat Min Mat Min Exi Min Mat Sto Fac Low Low Zio Pro Fac Low Low Dat Pro Fac Ext Cet Arc Hub Fac Was Fac Arm Lab Res Combat Hostiles Destroyed 115 | . 16 2 12 7 . . 19 18 . . . . 4 . . 1 . . 2 5 4 . . . . . 1 . 24 Melee 9 | . . . . . . . . . . . . . . . . 1 . . 2 5 . . . . . . 1 . . Guns 34 | . 13 2 4 . . . 3 6 . . . . . . . . . . . . . . . . . . . . 6 Cannons 38 | . . . 4 7 . . 11 7 . . . . . . . . . . . . . . . . . . . . 9 AOE 31 | . 3 . 4 . . . 4 5 . . . . 4 . . . . . . . 4 . . . . . . . 7 Classes Destroyed 22 | . 5 . 2 1 . . 3 2 . 3 1 . . . 1 . . . 1 . . . . . . . 1 . 2 Worker 12 | . . . . 1 . 2 2 1 1 . . . . . . . . . . . . . . . . . . . 5 Builder 12 | . . . . . . . 1 . . . . . . 1 . . . . 1 1 . . . 1 . . . . 7 Tunneler 1 | . 1 . . . . . . . . . . . . . . . . . . . . . . . . . . . . Hauler 7 | . . . 2 . . . 2 2 . . . . . . . . . . 1 . . . . . . . . . . Recycler 5 | . . . . . . . . . . . . . . . . . . . . 2 . . 2 . . . . . 1 Minesweeper 8 | . . . . . . . . . . 2 2 . . . . 2 . 2 . . . . . . . . . . . Mechanic 2 | . . . . . . . . 2 . . . . . . . . . . . . . . . . . . . . . Operator 3 | . 1 . . . . . . 1 . . . . . 1 . . . . . . . . . . . . . . . Watcher 13 | . 1 . . . . . 1 1 1 . . . . . . . . . 2 1 . . 1 2 . 1 . . 2 Swarmer 24 | . 6 . 4 4 . . 3 . . . . . 4 . . 1 . . . . 2 . . . . . . . . Saboteur 1 | . . . . . . . . . . . . . . . . . . . . . . . . . . . 1 . . Grunt 52 | . 10 2 6 3 . 3 8 12 . . . . . . . . . . . 3 1 . . . . . . . 4 Brawler 2 | . . . . . . . 1 1 . . . . . . . . . . . . . . . . . . . . . Duelist 2 | . . . . . . . 1 1 . . . . . . . . . . . . . . . . . . . . . Sentry 12 | . . . 2 . . . 6 3 . . . . . . . . . . . 1 . . . . . . . . . Demolisher 2 | . . . . . . . . . . . . . . . . . . . . . . . . . . . . . 2 Hunter 2 | . . . . . . . . 1 . . . . . . . . . . . 1 . . . . . . . . . Programmer 8 | . . . . . . . . . . . . . . . . . . . 2 . . . . . . . . . 6 Cetus Guard 1 | . . . . . . . . . . . . . . . . . . . . . 1 . . . . . . . . Tracker 7 | . . . . . . . . . . . . . . . . . . . . . . . . . . . . . 7 Combat Programmer 5 | . . . . . . . . . . . . . . . . . . . . . . . . . . . . . 5 Decomposer 1 | . . . . . . . . . . . . . . . 1 . . . . . . . . . . . . . . Packrat 3 | . . . . . . . . . . 3 . . . . . . . . . . . . . . . . . . . Samaritan 6 | . . . . . . . . . . . 1 . 1 . 2 . . 2 . . . . . . . . . . . Tinkerer 1 | . . . . . . . . . . 1 . . . . . . . . . . . . . . . . . . . Assembled 1 | . . . . . . . . . . . . . . . . . . . . . . . . . . . . . 1 Butcher 2 | . . . . . . . . . . . . . . . . . . . . . 2 . . . . . . . . Mutant 2 | . . . . . . . . . . . . . . . 1 1 . . . . . . . . . . . . . Best Kill Streak 7 | . 5 1 4 2 . 2 4 7 1 1 1 . 3 1 . 2 . 1 2 3 3 . 2 1 . 1 1 . 7 Combat Bots Only 5 | . 5 1 4 2 . . 4 5 . . . . 3 . . 1 . . 2 2 3 . . . . . 1 . 4 Max Kills in Single Turn 3 | . 2 1 1 1 . 1 3 2 1 1 1 . 3 1 1 1 . 1 1 1 3 . 1 1 . 1 1 . 3 Gunslinging . | . . . . . . . . . . . . . . . . . . . . . . . . . . . . . . Exploded 3 | . 2 . 1 . . . 3 2 . . . . 3 . . . . . . . 3 . . . . . . . 1 Melee 1 | . . . . . . . . . . . . . . . . 1 . . 1 1 . . . . . . 1 . . Uniques/NPCs Destroyed 1 | . . . . . . . . . . . . . . . . . . . . . 1 . . . . . . . . A7 (-5/Cetus) Combat | -11 -10 -10 -9 -9 -9 -8 -8 -8 -7 -7 -7 -7 -6 -6 -6 -6 -6 -5 -5 -5 -5 -5 -5 -4 -4 -4 -4 -4 -3 -------- Run | Scr Mat Min Mat Min Exi Min Mat Sto Fac Low Low Zio Pro Fac Low Low Dat Pro Fac Ext Cet Arc Hub Fac Was Fac Arm Lab Res Damage Taken 13074 | . 736 140 389 270 . . 836 1120 . . . 73 469 . 38 33 . 37 326 234 289 . 292 . . . 806 156 6830 Core 2220 | . 175 31 20 27 . . 77 82 . . . . 137 . 38 . . . 107 37 65 . 103 . . . 146 26 1149 Absorbed by Shields 105 | . . . . . . . . . . . . . . . . . . . . . 105 . . . . . . . . Reduced by Siege Mode 236 | . . . . . . . . . . . . . . . . . . . . . . . . . . . . . 236 Regen/Repaired (Parts) 375 | . . . . . . . 135 . . . . . . 89 . . . . 35 . . . . . . . . . 116 Core Remaining (%) 74 | 100 . 17 . . . 88 . 71 . . . . 80 . . . . 95 . . . . 68 . . . . 79 . Volleys Fired 612 | . 56 10 57 19 . 5 73 65 13 . . . 48 3 9 . . . . 58 54 . 5 2 . 1 24 . 110 Largest 2 | . 2 2 2 2 . 1 2 2 1 . . . 1 1 1 . . . . 1 2 . 1 1 . 1 1 . 1 Hottest 200 | . 60 60 136 136 . 68 93 96 65 . . . 65 35 65 . . . . 90 110 . 90 90 . 120 120 . 200 Shots Fired 871 | . 103 20 68 38 . 5 145 125 13 . . . 48 3 9 . . . . 58 96 . 5 2 . 1 24 . 108 Gun 341 | . 98 20 34 . . . 71 57 . . . . . . . . . . . . . . . . . . . . 61 Cannon 376 | . . . 13 38 . 5 71 58 13 . . . 45 3 9 . . . . 14 43 . 5 2 . 1 9 . 47 Launcher 35 | . 5 . 4 . . . 3 10 . . . . 3 . . . . . . 1 9 . . . . . . . . Special 119 | . . . 17 . . . . . . . . . . . . . . . . 43 44 . . . . . 15 . . Kinetic 269 | . 46 9 34 . . . 71 57 . . . . . . . . . . . . . . . . . . . . 52 Thermal 500 | . 52 11 30 38 . 5 71 58 13 . . . 45 3 9 . . . . 14 87 . 5 2 . 1 9 . 47 Explosive 35 | . 5 . 4 . . . 3 10 . . . . 3 . . . . . . 1 9 . . . . . . . . Electromagnetic 9 | . . . . . . . . . . . . . . . . . . . . . . . . . . . . . 9 Robot Hit Streak 31 | . 11 5 9 6 . 7 19 19 . . . . . . . . . . . 31 22 . . . . . 8 . 20 Robot Miss Streak 6 | . 5 2 2 3 . . 4 3 . . . . . . . . . . . 1 6 . . . . . 1 . 3 Penetration Max . | . . . . . . . . . . . . . . . . . . . . . . . . . . . . . . Secondary Targets 1 | . 1 . . . . . . . . . . . . . . . . . . . . . . . . . . . . Max Gunslinging Chain 1 | . 1 . . . . . . . . . . . . . . . . . . . . . . . . . . . . Capacitor 5 | . . . . . . . . . . . . . . . . . . . . . . . . . . . . . 5 Shots Hit Robots 619 | . 69 13 31 22 . 5 90 87 3 15 10 1 1 2 10 11 . 7 12 62 50 . 5 5 2 3 14 . 89 Core Hits 332 | . 28 4 21 10 . 5 43 58 2 9 5 . 6 2 2 4 . 2 4 9 46 . 2 3 1 2 . . 64 Critical Kills 4 | . . . 1 . . . 1 . . . . . . . . . . . . . . . . . . . . . 2 Critical Parts Destroyed . | . . . . . . . . . . . . . . . . . . . . . . . . . . . . . . Critical Strikes 11 | . . . 1 . . . 1 . . . . . . . . 2 . . 1 2 . . . 2 . . . . 2 Meltdown 3 | . . . . . . . 1 . . . . . . . . . . . . . . . . . . . . . 2 Destroy 1 | . . . 1 . . . . . . . . . . . . . . . . . . . . . . . . . . Sever 2 | . . . . . . . . . . . . . . . . 2 . . . . . . . . . . . . . Impale 5 | . . . . . . . . . . . . . . . . . . . 1 2 . . . 2 . . . . . Melee Attacks 324 | . . . . . . . . 9 29 17 10 4 19 17 19 14 4 11 38 28 . . 22 14 2 7 35 5 20 Impact 9 | . . . . . . . . 9 . . . . . . . . . . . . . . . . . . . . . Slashing 147 | . . . . . . . . . 29 17 10 4 19 17 19 14 4 11 3 . . . . . . . . . . Piercing 168 | . . . . . . . . . . . . . . . . . . . 35 28 . . 22 14 2 7 35 5 20 Sneak Attacks 48 | . . . . . . . . 3 1 8 5 1 1 1 4 6 . 5 2 7 . . 2 1 1 . . . . Combat Hostiles 4 | . . . . . . . . . . . . . . . . . . . . 4 . . . . . . . . . Follow-up Attacks 1 | . . . . . . . . . . . . . . . . . . . . . . . . . . . . . 1 Damage Inflicted 26118 | . 1034 164 735 547 . 133 1826 2826 154 926 603 . 268 118 605 579 . 438 657 1343 2746 . 317 307 201 173 42 . 9376 Guns 4304 | . 793 164 274 . . . 472 715 . . . . . . . . . . . . . . . . . . . . 1886 Cannons 7560 | . . . 191 484 . 107 1056 918 . . . . . . . . . . . . 1159 . . . . . . . 3645 Explosions 6370 | . 241 . 262 . . . 256 947 . . . . 190 . . . . . . 73 1120 . . . . . . . 3281 Melee 7137 | . . . . . . . . 224 154 926 603 . 78 118 605 579 . 438 657 1270 . . 317 307 201 173 42 . 445 Ramming 280 | . . . 8 63 . 26 42 22 . . . . . . . . . . . . . . . . . . . . 119 Kinetic 3789 | . 372 94 274 . . . 472 715 . . . . . . . . . . . . . . . . . . . . 1862 Thermal 11799 | . 421 70 191 484 . 107 1056 918 . . . . . . . . . . . . 1626 . . . . . . . 6926 Explosive 3089 | . 241 . 262 . . . 256 947 . . . . 190 . . . . . . 73 1120 . . . . . . . . Electromagnetic 24 | . . . . . . . . . . . . . . . . . . . . . . . . . . . . . 24 Impact 224 | . . . . . . . . 224 . . . . . . . . . . . . . . . . . . . . . Slashing 3641 | . . . . . . . . . 154 926 603 . 78 118 605 579 . 438 140 . . . . . . . . . . Piercing 3272 | . . . . . . . . . . . . . . . . . . . 517 1270 . . 317 307 201 173 42 . 445 Highest Corruption 34 | . 8 8 . . . . . 1 . . . . . . . . . . 3 6 6 6 17 . . . 4 4 34 Average Corruption 10 | . 4 8 . . . . . 1 . . . . . . . . . . 2 4 6 6 7 . . . 2 4 23 Corruption Purged . | . . . . . . . . . . . . . . . . . . . . . . . . . . . . . . Corruption Blocked . | . . . . . . . . . . . . . . . . . . . . . . . . . . . . . . Effects 194 | . 11 14 . . . . . 12 . . . . . . . . . . 1 14 11 4 6 . . . . 1 120 Message Errors 46 | . 3 3 . . . . . 1 . . . . . . . . . . 1 4 2 2 1 . . . . . 29 Matter Fused 31 | . 3 2 . . . . . 3 . . . . . . . . . . . 1 3 1 1 . . . . . 17 Heat Flow Errors 27 | . . 4 . . . . . 2 . . . . . . . . . . . 3 2 1 . . . . . . 15 Energy Discharges 28 | . 2 . . . . . . 2 . . . . . . . . . . . 3 . . 3 . . . . . 18 Parts Rejected 4 | . . 1 . . . . . 1 . . . . . . . . . . . . . . 1 . . . . . 1 Data Loss (minor) 28 | . 1 2 . . . . . 2 . . . . . . . . . . . . 2 . . . . . . 1 20 Data Loss (major) 8 | . . . . . . . . . . . . . . . . . . . . 3 . . . . . . . . 5 Misfires 6 | . 1 1 . . . . . . . . . . . . . . . . . . . . . . . . . . 4 Alerts 4 | . . . . . . . . 1 . . . . . . . . . . . . . . . . . . . . 3 Misdirections 2 | . . . . . . . . . . . . . . . . . . . . . . . . . . . . . 2 Weapon Failures 10 | . 1 1 . . . . . . . . . . . . . . . . . . 2 . . . . . . . 6 Overload Shots . | . . . . . . . . . . . . . . . . . . . . . . . . . . . . . . Overflow Damage 2575 | . 66 . 28 11 . . . 6 6 150 154 . 3 . 324 53 . 190 92 218 35 . 99 3 21 . . . 1116 Projectiles 851 | . . . . 11 . . . . . . . . . . . . . . . . . . . . . . . . 840 Explosions 403 | . 66 . 28 . . . . . . . . . 3 . . . . . . . 35 . . . . . . . 271 Melee 1321 | . . . . . . . . 6 6 150 154 . . . 324 53 . 190 92 218 . . 99 3 21 . . . 5 Knockbacks 3 | . . . . . . . 1 . . . . . . . . . . . . . . . . . . . . . 2 Impact 3 | . . . . . . . 1 . . . . . . . . . . . . . . . . . . . . . 2 Kinetic . | . . . . . . . . . . . . . . . . . . . . . . . . . . . . . . Secondary . | . . . . . . . . . . . . . . . . . . . . . . . . . . . . . . Self-Inflicted Damage 343 | . 22 . . . . . . . . . . . 38 . . . . . . 44 . . . . . . . . 239 Shots 9 | . 1 . . . . . . . . . . . 1 . . . . . . 1 . . . . . . . . 6 Rammed 33 | . . . 1 6 . 3 3 3 . . . . . . . . . . . . . . . . . . . . 17 Targets Rammed 34 | . . . 1 6 . 4 3 3 . . . . . . . . . . . . . . . . . . . . 17 Kicked . | . . . . . . . . . . . . . . . . . . . . . . . . . . . . . . Crushed 1 | . . . . . . 1 . . . . . . . . . . . . . . . . . . . . . . . Highest Temperature 440 | . 60 258 72 300 . 10 137 255 140 . . . 352 6 70 78 85 103 208 321 233 193 . . . 34 158 . 440 Average Temperature 63 | . 20 76 26 110 . 5 32 70 48 . . . 116 2 27 41 38 37 31 52 88 101 . . . 25 68 . 79 Received Heat Transfer 1881 | . 282 99 135 126 . . 423 396 . . . . 189 . 18 9 . 18 . 54 6 . 9 . . . 9 . 108 Effects 4 | . . . . . . . . . . . . . 1 . . . . . . . . . . . . . . . 3 Shutdowns 3 | . . . . . . . . . . . . . 1 . . . . . . . . . . . . . . . 2 Damage (minor) 1 | . . . . . . . . . . . . . . . . . . . . . . . . . . . . . 1 Siege Activations 5 | . . . . . . . . . . . . . . . . . . . . . . . . . . . . . 5 Total Turns 107 | . . . . . . . . . . . . . . . . . . . . . . . . . . . . . 107 Longest Duration 44 | . . . . . . . . . . . . . . . . . . . . . . . . . . . . . 44 Robots Corrupted . | . . . . . . . . . . . . . . . . . . . . . . . . . . . . . . Combat Hostiles . | . . . . . . . . . . . . . . . . . . . . . . . . . . . . . . Parts Fried . | . . . . . . . . . . . . . . . . . . . . . . . . . . . . . . Impact Corruptions 2 | . . . . . . . . 1 . . . . . . . . . . . . . . . . . . . . 1 Robots Melted 3 | . . . . . . . 1 . . . . . . . . . . . . . . . . . . . . . 2 Combat Hostiles 3 | . . . . . . . 1 . . . . . . . . . . . . . . . . . . . . . 2 Parts Melted 13 | . 2 . . 1 . . 3 . . . . . . . . . . . . . . . . . . . . . 7 Heat Transferred 11772 | . 925 150 333 814 . 185 1850 1628 . . . . . . . . . . . . 1519 . . . . . . . 4368 Parts Sabotaged 3 | . . . . . . . . . . . . . . . . . . . . . . . . . . . 3 . . Parts Stolen . | . . . . . . . . . . . . . . . . . . . . . . . . . . . . . . Parts Stripped . | . . . . . . . . . . . . . . . . . . . . . . . . . . . . . . Power Chain Reactions . | . . . . . . . . . . . . . . . . . . . . . . . . . . . . . . Missiles Intercepted . | . . . . . . . . . . . . . . . . . . . . . . . . . . . . . . Alert | -11 -10 -10 -9 -9 -9 -8 -8 -8 -7 -7 -7 -7 -6 -6 -6 -6 -6 -5 -5 -5 -5 -5 -5 -4 -4 -4 -4 -4 -3 ------- Run | Scr Mat Min Mat Min Exi Min Mat Sto Fac Low Low Zio Pro Fac Low Low Dat Pro Fac Ext Cet Arc Hub Fac Was Fac Arm Lab Res Peak Influence 1048 | . 333 201 336 270 . 10 392 540 173 . . . . 189 . . . . 164 796 998 534 1048 524 160 444 406 . 870 Initial 503 | . . 129 . 75 . . 3 165 35 . . . . 119 . . . . 9 74 445 344 186 503 160 112 177 . . Average 213 | . 137 188 108 108 . 6 139 303 66 . . . . 85 . . . . 72 247 809 482 563 417 160 212 163 . 259 Maximum Alert Level 3 | . 1 1 1 1 . . 1 2 . . . . . . . . . . . 3 3 2 3 2 . 2 2 . 3 Low Security (%) 66 | . 69 68 86 91 . 100 73 39 100 . . . . 100 . . . . 100 62 . . 13 . 100 46 86 . 56 Level 1 15 | . 30 31 13 8 . . 26 15 . . . . . . . . . . . 16 . 23 19 49 . 46 12 . 22 Level 2 13 | . . . . . . . . 45 . . . . . . . . . . . 16 35 76 33 50 . 7 . . 15 Level 3 3 | . . . . . . . . . . . . . . . . . . . . 4 64 . 32 . . . . . 6 Level 4 . | . . . . . . . . . . . . . . . . . . . . . . . . . . . . . . Level 5 . | . . . . . . . . . . . . . . . . . . . . . . . . . . . . . . High Security . | . . . . . . . . . . . . . . . . . . . . . . . . . . . . . . Max Security . | . . . . . . . . . . . . . . . . . . . . . . . . . . . . . . Squads Dispatched 51 | . 3 . 1 . . . 2 7 . . . . . 3 . . . . 3 1 . . 6 2 . 1 2 . 20 Investigation 17 | . 2 . 1 . . . 1 4 . . . . . 2 . . . . 2 1 . . 3 . . 1 . . . Extermination 5 | . . . . . . . . . . . . . . 1 . . . . 1 . . . . . . . . . 3 Reinforcement 11 | . 1 . . . . . . 1 . . . . . . . . . . . . . . 3 1 . . 2 . 3 Assault 4 | . . . . . . . . 2 . . . . . . . . . . . . . . . 1 . . . . 1 Garrison 1 | . . . . . . . 1 . . . . . . . . . . . . . . . . . . . . . . Intercept 13 | . . . . . . . . . . . . . . . . . . . . . . . . . . . . . 13 Searches Triggered . | . . . . . . . . . . . . . . . . . . . . . . . . . . . . . . Data Miner Redirects 5 | . . . . . . . . . . . . . . . . . . . . . . . 2 . . 1 . . 2 Construction Impeded . | . . . . . . . . . . . . . . . . . . . . . . . . . . . . . . Haulers Reinforced 1 | . . . . . . . . . . . . . . . . . . . . . . . . . . . . . 1 Active Scanning Responses . | . . . . . . . . . . . . . . . . . . . . . . . . . . . . . . Cargo Convoy Interrupts . | . . . . . . . . . . . . . . . . . . . . . . . . . . . . . . Stealth | -11 -10 -10 -9 -9 -9 -8 -8 -8 -7 -7 -7 -7 -6 -6 -6 -6 -6 -5 -5 -5 -5 -5 -5 -4 -4 -4 -4 -4 -3 --------- Run | Scr Mat Min Mat Min Exi Min Mat Sto Fac Low Low Zio Pro Fac Low Low Dat Pro Fac Ext Cet Arc Hub Fac Was Fac Arm Lab Res Distress Signals 11 | . 1 . . . . . 4 . . . . . . . . . . . 1 1 . . 1 . . 1 2 . . Communications Jammed 28 | . . . . . . . . . . . . . . . . . . . . . . . . . . 3 3 . 22 Distress Signals 24 | . . . . . . . . . . . . . . . . . . . . . . . . . . . 2 . 22 Times Spotted 315 | . 23 2 18 11 . . 23 32 3 4 . 13 31 2 11 8 . 1 11 20 14 . 4 5 . 13 22 1 43 Peak Tracking Total 14 | . 6 2 4 4 . . 4 6 1 4 . 13 9 1 4 7 . 1 2 7 7 . 3 2 . 6 14 1 6 Tactical Retreats 45 | . . . 2 2 . . . 2 1 1 . 1 12 . 6 5 . . 2 3 . . . . . . 5 . 3 Traps | -11 -10 -10 -9 -9 -9 -8 -8 -8 -7 -7 -7 -7 -6 -6 -6 -6 -6 -5 -5 -5 -5 -5 -5 -4 -4 -4 -4 -4 -3 ------- Run | Scr Mat Min Mat Min Exi Min Mat Sto Fac Low Low Zio Pro Fac Low Low Dat Pro Fac Ext Cet Arc Hub Fac Was Fac Arm Lab Res Traps Triggered 13 | . 5 . . . . . . 2 . . . . . . . . . . . 5 . . . 1 . . . . . Indirectly . | . . . . . . . . . . . . . . . . . . . . . . . . . . . . . . Trap Hack Attempts . | . . . . . . . . . . . . . . . . . . . . . . . . . . . . . . Triggered . | . . . . . . . . . . . . . . . . . . . . . . . . . . . . . . Disarmed . | . . . . . . . . . . . . . . . . . . . . . . . . . . . . . . Reprogrammed 4 | . . . 4 . . . . . . . . . . . . . . . . . . . . . . . . . . Reused 1 | . . . 1 . . . . . . . . . . . . . . . . . . . . . . . . . . Traps Extracted . | . . . . . . . . . . . . . . . . . . . . . . . . . . . . . . Installed . | . . . . . . . . . . . . . . . . . . . . . . . . . . . . . . Triggered 2 | . . . 1 . . . . . . . 1 . . . . . . . . . . . . . . . . . . Most Traps Carried 5 | . . . . . . . . . . 4 4 4 4 4 4 5 4 4 4 4 4 4 4 4 4 4 4 4 . Machines | -11 -10 -10 -9 -9 -9 -8 -8 -8 -7 -7 -7 -7 -6 -6 -6 -6 -6 -5 -5 -5 -5 -5 -5 -4 -4 -4 -4 -4 -3 ---------- Run | Scr Mat Min Mat Min Exi Min Mat Sto Fac Low Low Zio Pro Fac Low Low Dat Pro Fac Ext Cet Arc Hub Fac Was Fac Arm Lab Res Machines Disabled 25 | . . . 1 . . . . 5 . . . . . . 1 . . . . 2 5 2 . . . 3 4 1 1 Max in Single Turn 1 | . . . 1 . . . . 1 . . . . . . 1 . . . . . 1 . . . . 1 1 1 1 Garrison Access 5 | . . . . . . . 1 . 1 . . . . . . . . . 1 . . . . 1 . . . . 1 Machines Sabotaged . | . . . . . . . . . . . . . . . . . . . . . . . . . . . . . . Garrisons Compromised . | . . . . . . . . . . . . . . . . . . . . . . . . . . . . . . Overloaded Fab Kills . | . . . . . . . . . . . . . . . . . . . . . . . . . . . . . . Hacking | -11 -10 -10 -9 -9 -9 -8 -8 -8 -7 -7 -7 -7 -6 -6 -6 -6 -6 -5 -5 -5 -5 -5 -5 -4 -4 -4 -4 -4 -3 --------- Run | Scr Mat Min Mat Min Exi Min Mat Sto Fac Low Low Zio Pro Fac Low Low Dat Pro Fac Ext Cet Arc Hub Fac Was Fac Arm Lab Res Machines Accessed 93 | . 3 1 8 . 1 . 5 13 7 2 2 1 . 11 1 . 4 . 9 5 1 . 4 4 . 3 4 1 3 Terminals 58 | . 2 1 6 . . . 1 12 5 1 . . . 4 1 . . . 5 5 1 . 4 2 . 3 4 . 1 Fabricators 3 | . . . . . . . . . . . . . . 2 . . . . 1 . . . . . . . . . . Repair Stations 7 | . . . . . . . 1 . . . . . . 3 . . . . 1 . . . . 1 . . . . 1 Recycling Units 6 | . 1 . 1 . . . 1 1 1 . . . . 1 . . . . . . . . . . . . . . . Scanalyzers 4 | . . . 1 . . . 1 . . . . . . 1 . . . . 1 . . . . . . . . . . Garrison Access 5 | . . . . . . . 1 . 1 . . . . . . . . . 1 . . . . 1 . . . . 1 Total Hacks 323 | . 11 2 29 . 1 . 12 34 25 4 5 7 . 32 3 . 30 . 21 20 1 . 19 13 . 16 15 1 22 Successful 199 | . 6 1 16 . 1 . 8 20 16 4 5 7 . 20 3 . 30 . 12 8 1 . 8 8 . 5 10 1 9 Failed 124 | . 5 1 13 . . . 4 14 9 . . . . 12 . . . . 9 12 . . 11 5 . 11 5 . 13 Catastrophic 16 | . . . 1 . . . 2 1 3 . . . . 3 . . . . . . . . . . . 1 1 . 4 Database Lockouts . | . . . . . . . . . . . . . . . . . . . . . . . . . . . . . . Manual 150 | . 6 2 11 . 1 . 4 19 16 . . . . 8 . . . . 7 21 1 . 17 8 . 17 11 . 1 Terminals 210 | . 9 2 27 . . . 4 32 20 3 . . . 6 3 . . . 14 20 1 . 19 11 . 16 15 . 8 Fabricators 11 | . . . . . . . . . . . . . . 9 . . . . 2 . . . . . . . . . . Repair Stations 31 | . . . . . . . 3 . . . . . . 14 . . . . 2 . . . . 1 . . . . 11 Recycling Units 11 | . 2 . 1 . . . 1 2 4 . . . . 1 . . . . . . . . . . . . . . . Scanalyzers 6 | . . . 1 . . . 2 . . . . . . 2 . . . . 1 . . . . . . . . . . Garrison Access 9 | . . . . . . . 2 . 1 . . . . . . . . . 2 . . . . 1 . . . . 3 Terminal Hacks 121 | . 5 1 11 . 1 . 1 13 8 4 5 7 . 1 3 . 30 . 4 5 1 . 6 5 . 3 6 1 . Record 22 | . . . . . . . . . . 3 4 . . . 3 . 11 . . . . . . . . . . 1 . Part Schematic 19 | . . 1 . . . . . . . . . 7 . . . . 11 . . . . . . . . . . . . Robot Schematic 5 | . . . . . . . . . . . . . . . . . 5 . . . . . . . . . . . . Robot Analysis 12 | . 3 . 2 . . . . 1 2 . . . . . . . . . . 3 . . . . . 1 . . . Prototype ID Bank 5 | . . . 1 . . . . 1 . . . . . . . . 3 . . . . . . . . . . . . Open Door 10 | . . . . . . . . 6 . 1 1 . . . . . . . 1 . 1 . . . . . . . . Open DSF 1 | . . . . . . . . . 1 . . . . . . . . . . . . . . . . . . . . Branch Access Points 5 | . . . 1 . . . . . 1 . . . . . . . . . . 1 . . . 1 . 1 . . . Emergency Access Points 1 | . . . . . . . . . 1 . . . . . . . . . . . . . . . . . . . . Terminal Index 8 | . . . 1 . . . . 1 1 . . . . . . . . . 1 1 . . 1 . . 1 1 . . Scanalyzer Index 1 | . . . 1 . . . . . . . . . . . . . . . . . . . . . . . . . . Alert Level 4 | . . . . . . . . 1 . . . . . . . . . . . . . . 1 1 . . 1 . . Unreport Threat 6 | . . . 1 . . . . 3 . . . . . . . . . . . . . . 1 1 . . . . . Locate Traps 9 | . 1 . 2 . . . . . . . . . . 1 . . . . 1 . . . 2 1 . . 1 . . Reprogram Traps 1 | . . . 1 . . . . . . . . . . . . . . . . . . . . . . . . . . Hauler Manifests 1 | . . . . . . . 1 . . . . . . . . . . . . . . . . . . . . . . Registered Prototypes 1 | . . . . . . . . . 1 . . . . . . . . . . . . . . . . . . . . Zone Layout 9 | . 1 . 1 . . . . . 1 . . . . . . . . . 1 . . . 1 1 . . 3 . . EX-Prototype ID Bank 1 | . . . . . 1 . . . . . . . . . . . . . . . . . . . . . . . . Fabricator Hacks 9 | . . . . . . . . . . . . . . 7 . . . . 2 . . . . . . . . . . Network Status 2 | . . . . . . . . . . . . . . 2 . . . . . . . . . . . . . . . Load Schematic 3 | . . . . . . . . . . . . . . 2 . . . . 1 . . . . . . . . . . Build 4 | . . . . . . . . . . . . . . 3 . . . . 1 . . . . . . . . . . Repair Station Hacks 20 | . . . . . . . 2 . . . . . . 9 . . . . 2 . . . . . . . . . 7 Scan Component 11 | . . . . . . . 1 . . . . . . 5 . . . . 1 . . . . . . . . . 4 Repair 8 | . . . . . . . 1 . . . . . . 4 . . . . 1 . . . . . . . . . 2 Refit 1 | . . . . . . . . . . . . . . . . . . . . . . . . . . . . . 1 Recycling Unit Hacks 1 | . . . . . . . . . 1 . . . . . . . . . . . . . . . . . . . . Report Inventory 1 | . . . . . . . . . 1 . . . . . . . . . . . . . . . . . . . . Scanalyzer 6 | . . . 1 . . . 2 . . . . . . 2 . . . . 1 . . . . . . . . . . Insert Component 4 | . . . 1 . . . 1 . . . . . . 1 . . . . 1 . . . . . . . . . . Analyze 2 | . . . . . . . 1 . . . . . . 1 . . . . . . . . . . . . . . . Garrison Access Hacks 5 | . . . . . . . 1 . 1 . . . . . . . . . 1 . . . . 1 . . . . 1 Seal Access 5 | . . . . . . . 1 . 1 . . . . . . . . . 1 . . . . 1 . . . . 1 Unauthorized Hacks 37 | . 1 . 4 . . . 2 7 6 . . . . 1 . . . . 2 3 . . 2 2 . 2 4 . 1 Terminals 30 | . . . 3 . . . 1 6 3 . . . . 1 . . . . 2 3 . . 2 2 . 2 4 . 1 Track 7 | . . . 1 . . . . 2 1 . . . . . . . . . . 1 . . . . . . 2 . . Assimilate 5 | . . . . . . . . . . . . . . 1 . . . . 2 . . . . 1 . 1 . . . Botnet 14 | . . . 2 . . . 1 3 1 . . . . . . . . . . 2 . . 1 1 . 1 1 . 1 Detonate 1 | . . . . . . . . . . . . . . . . . . . . . . . 1 . . . . . . Disrupt 2 | . . . . . . . . 1 . . . . . . . . . . . . . . . . . . 1 . . Operators 1 | . . . . . . . . . 1 . . . . . . . . . . . . . . . . . . . . Fabricators . | . . . . . . . . . . . . . . . . . . . . . . . . . . . . . . Repair Stations . | . . . . . . . . . . . . . . . . . . . . . . . . . . . . . . Recycling Units 7 | . 1 . 1 . . . 1 1 3 . . . . . . . . . . . . . . . . . . . . Monitor 1 | . . . . . . . . . 1 . . . . . . . . . . . . . . . . . . . . Reject 1 | . . . . . . . . . 1 . . . . . . . . . . . . . . . . . . . . Mask 1 | . . . . . . . . . 1 . . . . . . . . . . . . . . . . . . . . Tunnel 4 | . 1 . 1 . . . 1 1 . . . . . . . . . . . . . . . . . . . . . Scanalyzers . | . . . . . . . . . . . . . . . . . . . . . . . . . . . . . . Garrison Access . | . . . . . . . . . . . . . . . . . . . . . . . . . . . . . . Data Cores Recovered . | . . . . . . . . . . . . . . . . . . . . . . . . . . . . . . Used . | . . . . . . . . . . . . . . . . . . . . . . . . . . . . . . Hacking Detections 61 | . 3 1 6 . . . 3 7 4 . . . . 10 . . . . 6 5 . . 4 3 . 3 3 . 3 Full Trace Events 11 | . 1 . . . . . . 2 . . . . . 2 . . . . 2 . . . 3 . . 1 . . . Feedback Events 1 | . . . . . . . . . . . . . . . . . . . . . . . 1 . . . . . . Hackware Fried 1 | . . . . . . . . . . . . . . . . . . . . . . . 1 . . . . . . Feedback Blocked . | . . . . . . . . . . . . . . . . . . . . . . . . . . . . . . Robot Schematics Acquired 5 | . . . . . . . . . . . . . . . . . 5 . . . . . . . . . . . . Robots Built 1 | . . . . . . . . . . . . . . 1 . . . . . . . . . . . . . . . Authchips . | . . . . . . . . . . . . . . . . . . . . . . . . . . . . . . Time 40 | . . . . . . . . . . . . . . 40 . . . . . . . . . . . . . . . Total Robot Build Rating 1 | . . . . . . . . . . . . . . 1 . . . . . . . . . . . . . . . Part Schematics Acquired 21 | . . 1 . . . . 1 . . . . 7 . 1 . . 11 . . . . . . . . . . . . Parts Built 3 | . . . . . . . . . . . . . . 2 . . . . 1 . . . . . . . . . . Authchips 2 | . . . . . . . . . . . . . . 2 . . . . . . . . . . . . . . . Time 251 | . . . . . . . . . . . . . . 167 . . . . 84 . . . . . . . . . . Total Part Build Rating 10 | . . . . . . . . . . . . . . 4 . . . . 6 . . . . . . . . . . Parts Repaired 8 | . . . . . . . 1 . . . . . . 4 . . . . 1 . . . . . . . . . 2 Time 339 | . . . . . . . 13 . . . . . . 213 . . . . 50 . . . . . . . . . 63 Parts Recycled . | . . . . . . . . . . . . . . . . . . . . . . . . . . . . . . Recycled Matter . | . . . . . . . . . . . . . . . . . . . . . . . . . . . . . . Retrieved Matter . | . . . . . . . . . . . . . . . . . . . . . . . . . . . . . . Retrieved Components . | . . . . . . . . . . . . . . . . . . . . . . . . . . . . . . Parts Scanalyzed 2 | . . . . . . . 1 . . . . . . 1 . . . . . . . . . . . . . . . Part Schematics Acquired 2 | . . . . . . . 1 . . . . . . 1 . . . . . . . . . . . . . . . Parts Damaged . | . . . . . . . . . . . . . . . . . . . . . . . . . . . . . . Bothacking | -11 -10 -10 -9 -9 -9 -8 -8 -8 -7 -7 -7 -7 -6 -6 -6 -6 -6 -5 -5 -5 -5 -5 -5 -4 -4 -4 -4 -4 -3 ------------ Run | Scr Mat Min Mat Min Exi Min Mat Sto Fac Low Low Zio Pro Fac Low Low Dat Pro Fac Ext Cet Arc Hub Fac Was Fac Arm Lab Res Used RIF Installer . | . . . . . . . . . . . . . . . . . . . . . . . . . . . . . . Robots Hacked 1 | . . . . . . . . . . . . . . . . . . . . 1 . . . . . . . . . Non-combat . | . . . . . . . . . . . . . . . . . . . . . . . . . . . . . . Combat 1 | . . . . . . . . . . . . . . . . . . . . 1 . . . . . . . . . Robot Hacks Applied 1 | . . . . . . . . . . . . . . . . . . . . 1 . . . . . . . . . parse_system 1 | . . . . . . . . . . . . . . . . . . . . 1 . . . . . . . . . Relay Couplers Released . | . . . . . . . . . . . . . . . . . . . . . . . . . . . . . . Fabnet Peak Effective % . | . . . . . . . . . . . . . . . . . . . . . . . . . . . . . . Robots Rewired 24 | . . . . . . . . . . . . . . . . . . . . 21 . . . . . . 3 . . Allies Hacked . | . . . . . . . . . . . . . . . . . . . . . . . . . . . . . . Hacks Repelled . | . . . . . . . . . . . . . . . . . . . . . . . . . . . . . . Allies | -11 -10 -10 -9 -9 -9 -8 -8 -8 -7 -7 -7 -7 -6 -6 -6 -6 -6 -5 -5 -5 -5 -5 -5 -4 -4 -4 -4 -4 -3 -------- Run | Scr Mat Min Mat Min Exi Min Mat Sto Fac Low Low Zio Pro Fac Low Low Dat Pro Fac Ext Cet Arc Hub Fac Was Fac Arm Lab Res Total Allies 85 | . . . . 5 . . . 2 . . . . . 1 . . . 1 2 27 6 . . 1 20 1 3 . 16 Largest Group 22 | . . . . 5 5 3 . 2 . . . . . 1 . . . 1 1 15 8 6 6 1 21 22 5 . 9 Highest-Rated Group 777 | . . . . 93 93 40 . 62 . . . . . 6 . . . 96 26 574 777 513 513 10 760 769 195 . 123 Highest-Rated Ally 159 | . . . . 31 31 16 . 31 . . . . . 6 . . . 96 26 159 159 99 99 10 50 50 65 . 15 Total Orders 2 | . . . . . . . . . . . . . . . . . . . . 2 . . . . . . . . . STAY 1 | . . . . . . . . . . . . . . . . . . . . 1 . . . . . . . . . FOLLOW 1 | . . . . . . . . . . . . . . . . . . . . 1 . . . . . . . . . Ally Attacks 542 | . . . . 23 . . . 41 . . . . . . . . . 9 . 140 44 16 83 . . 60 1 . 125 Total Damage 13859 | . . . . 318 . . . 531 . . . . . . . . . 239 . 2660 1556 787 3923 . . 1439 13 . 2393 Kills 86 | . . . . 3 . . . 7 . . . . . . . . . 1 . 20 10 4 25 . . 6 . . 10 Allies Corrupted 1 | . . . . . . . . . . . . . . . . . . . . . . . . . . . 1 . . Allies Melted . | . . . . . . . . . . . . . . . . . . . . . . . . . . . . . . Intel | -11 -10 -10 -9 -9 -9 -8 -8 -8 -7 -7 -7 -7 -6 -6 -6 -6 -6 -5 -5 -5 -5 -5 -5 -4 -4 -4 -4 -4 -3 ------- Run | Scr Mat Min Mat Min Exi Min Mat Sto Fac Low Low Zio Pro Fac Low Low Dat Pro Fac Ext Cet Arc Hub Fac Was Fac Arm Lab Res Robot Analysis Total 12 | . 3 . 2 . . . . 1 2 . . . . . . . . . . 3 . . . . . 1 . . . Derelict Logs Recovered 9 | . . 1 . 2 . . . . . 1 1 1 . . . 2 . 1 . . . . . . . . . . . Drone Launches . | . . . . . . . . . . . . . . . . . . . . . . . . . . . . . . Drone Recoveries . | . . . . . . . . . . . . . . . . . . . . . . . . . . . . . . Exploration | -11 -10 -10 -9 -9 -9 -8 -8 -8 -7 -7 -7 -7 -6 -6 -6 -6 -6 -5 -5 -5 -5 -5 -5 -4 -4 -4 -4 -4 -3 ------------- Run | Scr Mat Min Mat Min Exi Min Mat Sto Fac Low Low Zio Pro Fac Low Low Dat Pro Fac Ext Cet Arc Hub Fac Was Fac Arm Lab Res Turns Passed 17459 | . 660 410 842 1103 378 284 1125 1859 573 422 226 242 782 843 532 476 33 282 781 783 434 97 223 290 122 176 619 92 2770 Spaces Moved 18281 | 1 331 236 370 627 236 161 473 838 1232 994 455 723 1141 950 882 946 110 534 1469 1013 238 139 387 664 272 366 779 197 1517 Core 55 | . . . . . . . . . . . . . . . . . . . . . . . . . . . . . 55 Treads 3960 | . 131 236 370 627 236 161 473 838 4 . . . . . . . . . . . . . . . . . . . 884 Legs 265 | 1 200 . . . . . . . . . . . . . . . . . . . . . . . . . . . 64 Wheels . | . . . . . . . . . . . . . . . . . . . . . . . . . . . . . . Hover . | . . . . . . . . . . . . . . . . . . . . . . . . . . . . . . Flight 14001 | . . . . . . . . . 1228 994 455 723 1141 950 882 946 110 534 1469 1013 238 139 387 664 272 366 779 197 514 Fastest Speed 16 | 120 120 160 160 160 160 160 160 160 29 29 29 29 29 23 23 21 21 21 16 16 18 18 18 23 23 23 23 26 20 Average Speed 59 | 120 135 160 160 160 160 160 160 168 30 29 29 29 31 30 31 31 21 29 19 19 32 18 24 23 23 23 23 27 137 Slowest Speed 250 | 120 160 160 160 160 160 160 160 170 239 29 99 29 169 86 133 133 21 79 79 88 98 18 103 24 23 23 28 28 250 Overloaded Moves . | . . . . . . . . . . . . . . . . . . . . . . . . . . . . . . Propulsion Burnouts . | . . . . . . . . . . . . . . . . . . . . . . . . . . . . . . Robots Hopped 27 | . . . . . . . . . 4 . . . 1 1 . . . . 8 . . 1 3 4 1 1 . . 3 Cave-ins Triggered 1 | . . . . . . . . . . . . . . . . . . . . . . . 1 . . . . . . Teleports 1 | . . . . . . . . . . . . . . . . . . . . . . . . . . . . 1 . Exploration Rate (%) 56 | 2 42 60 39 99 60 34 32 84 32 95 65 78 79 18 77 92 70 54 29 73 78 95 23 16 95 14 43 96 16 Regions Visited 29 Branch Regions 19 Pre-discovered Areas 8 | . 1 . 1 . . . 1 1 . . . 1 . . . 1 1 1 . . . . . . . . . . . Known Exits Taken 18 | . . . 1 . . . 1 1 1 1 1 1 1 1 1 1 1 1 1 1 . . 1 . . 1 . 1 . Unknown Exits Taken 9 | 1 1 1 . 1 1 1 . . . . . . . . . . . . . . 1 1 . . . . 1 . . Scrap Searched 14 | . . . . 1 . . . . . 3 3 1 2 . 2 1 . 1 . . . . . . . . . . . Spaces Dug 436 | . 13 . 16 . . . 7 3 28 1 . . 61 14 10 2 4 . 14 29 . . 19 10 . 4 33 . 168 Terrain Destroyed 794 | . 31 . 42 . . . 32 25 29 1 . . 65 14 11 2 4 . 14 30 78 . 20 10 . 4 33 . 349 Melee 146 | . . . . . . . . 3 24 1 . . 18 11 9 2 4 . 14 6 . . 15 8 . 4 24 . 3 Projectile 95 | . . . 17 . . . . . 5 . . . 19 3 2 . . . . 14 . . 5 2 . . 9 . 19 AOE 553 | . 31 . 25 . . . 32 22 . . . . 28 . . . . . . 10 78 . . . . . . . 327 Terrain Rammed . | . . . . . . . . . . . . . . . . . . . . . . . . . . . . . . Walls Destroyed . | . . . . . . . . . . . . . . . . . . . . . . . . . . . . . . Machines Disabled . | . . . . . . . . . . . . . . . . . . . . . . . . . . . . . . Actions | -11 -10 -10 -9 -9 -9 -8 -8 -8 -7 -7 -7 -7 -6 -6 -6 -6 -6 -5 -5 -5 -5 -5 -5 -4 -4 -4 -4 -4 -3 --------- Run | Scr Mat Min Mat Min Exi Min Mat Sto Fac Low Low Zio Pro Fac Low Low Dat Pro Fac Ext Cet Arc Hub Fac Was Fac Arm Lab Res Total 23382 | . 443 248 515 685 237 182 711 1160 1373 1107 535 753 1489 1481 1097 1100 113 638 1899 1524 449 209 471 770 327 444 1146 225 2051 Wait 3289 | . 25 2 45 29 . 5 125 177 43 59 47 4 255 443 163 127 . 80 361 339 124 72 43 73 47 57 294 11 239 Move 18200 | . 330 235 369 626 235 160 472 837 1223 993 454 722 1138 947 881 945 109 533 1454 1012 237 136 379 656 269 363 778 196 1511 Hop 25 | . . . . . . . . . 4 . . . 1 1 . . . . 6 . . 1 3 4 1 1 . . 3 Pick Up 105 | . 6 . 14 1 1 2 5 12 4 2 3 5 1 13 . . . . 8 . 6 . 1 2 2 4 1 2 10 Fast Attach 172 | . 2 1 1 . . . 2 13 13 5 3 5 2 12 . 1 . . 12 5 9 . 5 6 1 . 5 6 63 Attach 119 | . 2 . 2 1 . . 1 4 6 12 7 1 10 14 9 6 . 3 5 5 4 . 3 2 2 . 3 1 16 Detach 96 | . 1 . 1 . . . . 2 . 10 7 1 11 12 9 4 . 3 4 6 3 . 3 3 . 1 . 2 13 Swap 136 | . 11 . 17 2 . 2 16 13 9 1 1 1 . 6 6 2 . 8 1 11 5 . 4 4 . 6 4 . 6 Drop 218 | . 10 . 8 1 1 4 14 25 29 8 3 10 4 13 1 1 . . 12 6 7 . 2 4 3 4 2 2 44 Fire 612 | . 56 10 57 19 . 5 73 65 13 . . . 48 3 9 . . . . 58 54 . 5 2 . 1 24 . 110 Melee 321 | . . . . . . . . 9 29 17 10 4 19 17 19 14 4 11 36 28 . . 22 14 2 7 35 5 19 Ram 12 | . . . . . . . . . . . . . . . . . . . . . . . . . . . . . 12 Kick . | . . . . . . . . . . . . . . . . . . . . . . . . . . . . . . Crush 22 | . . . 1 6 . 4 3 3 . . . . . . . . . . . . . . . . . . . . 5 Escape Stasis 55 | . . . . . . . . . . . . . . . . . . . . 54 . . 1 . . . . . . Rewire . | . . . . . . . . . . . . . . . . . . . . . . . . . . . . . . Trap . | . . . . . . . . . . . . . . . . . . . . . . . . . . . . . . Miscellaneous . | . . . . . . . . . . . . . . . . . . . . . . . . . . . . . . Route ------- -11/Scrapyard -10/Materials (discovered 2 exits: *Mat / *Min) -10/Mines -9/Materials (discovered 2 exits: *Mat / *Min) -9/Mines (discovered 4 exits: *Mat x2 / *Exi / *Zio) -9/Exiles -8/Mines (discovered 2 exits: *Mat x2) -8/Materials (discovered 2 exits: Fac / *Sto) -8/Storage -7/Factory (discovered 3 exits: *Fac / *Low x2) -7/Lower Caves (discovered 2 exits: *Low / *Zio) -7/Lower Caves (discovered 2 exits: *Fac / *Zio) -7/Zion -6/Proximity Caves -6/Factory (discovered 2 exits: *Low x2) -6/Lower Caves -6/Lower Caves (discovered 2 exits: *Fac / *Dat) -6/Data Miner -5/Proximity Caves -5/Factory (discovered 4 exits: *Fac x2 / *Upp / *Ext) -5/Extension (discovered 2 exits: *Fac / *Cet) -5/Cetus -5/Archives (discovered 3 exits: *Fac / *Hub x2) -5/Hub_04(d) -4/Factory (discovered 4 exits: Res / Upp x2 / Arm) -4/Waste -4/Factory (discovered 3 exits: Upp x2 / *Arm) -4/Armory -4/Lab -3/Research History --------- Turn | Location | Event 1 | -11/Scrapyard | Discovered new exit (range 0) 1 | -11/Scrapyard | Entered Materials 188 | -10/Materials | Discovered new exit (range 16) 317 | -10/Materials | Build established: Mutant 346 | -10/Materials | Core integrity fell below 50% 365 | -10/Materials | Discovered new exit (range 15) 661 | -10/Materials | Entered Mines 685 | -10/Mines | Core integrity fell below 20% 730 | -10/Mines | Discovered new exit (range 14) 1012 | -10/Mines | Learned Materials stockpile data 1071 | -10/Mines | Entered Materials 1071 | -9/Materials | Evolved 2 slots: Propulsion x1, Utility x1 1491 | -9/Materials | Discovered new exit (range 10) 1533 | -9/Materials | Identified exit to Mines 1913 | -9/Materials | Entered Mines 1936 | -9/Mines | Learned 2 Materials zone layouts 2145 | -9/Mines | Deemed a non-threat by the Exiles lab entrance 2145 | -9/Mines | Discovered new exit (range 5) 2547 | -9/Mines | Assisted by bots powering up and referring to "LRC-V3" 2580 | -9/Mines | Discovered new exit (range 8) 2604 | -9/Mines | A Derelict revealed a hidden shortcut to a safe place 2655 | -9/Mines | Build established: Scavenger-Mutant 2697 | -9/Mines | Discovered new exit (range 7) 3016 | -9/Mines | Entered Exiles 3016 | -9/Exiles | Accompanied by 5 allies 3046 | -9/Exiles | Led the pair of lost Derelicts to a safe place 3055 | -9/Exiles | Met 8R-AWN 3084 | -9/Exiles | Met EX-HEX 3127 | -9/Exiles | Met EX-BIN 3146 | -9/Exiles | Aligned with FarCom system 3148 | -9/Exiles | Given EX-Vault access code 3184 | -9/Exiles | Opened EX-Vault 3201 | -9/Exiles | Found Modified TNC 3236 | -9/Exiles | Warned to stay clear of 0b10 Research branches 3280 | -9/Exiles | Met EX-DEC 3380 | -9/Exiles | Discovered new exit (range 10) 3394 | -9/Exiles | Left Exiles lab with Modified TNC 3394 | -9/Exiles | Entered Mines 3394 | -8/Mines | Accompanied by 3 allies 3423 | -8/Mines | Discovered new exit (range 8) 3529 | -8/Mines | Discovered new exit (range 6) 3678 | -8/Mines | Entered Materials 3678 | -8/Materials | Evolved 2 slots: Utility x2 3679 | -8/Materials | Identified exit to Storage 3680 | -8/Materials | Identified exit to Factory 3722 | -8/Materials | Repaired Lgt. Treads 4656 | -8/Materials | Garrison activated, responded to threat 4803 | -8/Materials | Entered Storage 4813 | -8/Storage | Met a pair of Derelict thieves 5539 | -8/Storage | Build established: Mutant 6021 | -8/Storage | Discovered exit to Factory (range 6) 6662 | -8/Storage | Entered Factory 6662 | -7/Factory | Evolved 2 slots: Power x1, Utility x1 6845 | -7/Factory | Identified exit to Lower Caves 6962 | -7/Factory | Build established: Hacker-Sprinter 7006 | -7/Factory | Discovered new exit (range 7) 7008 | -7/Factory | Identified exit to Factory 7235 | -7/Factory | Entered Lower Caves 7255 | -7/Lower Caves | Found Prototype Device 7255 | -7/Lower Caves | Identified Heart of Steel 7442 | -7/Lower Caves | Learned Factory security intel 7449 | -7/Lower Caves | Learned Extension emergency access door positions 7499 | -7/Lower Caves | Build established: Sprinter 7519 | -7/Lower Caves | Discovered new exit (range 11) 7521 | -7/Lower Caves | Identified exit to Lower Caves 7607 | -7/Lower Caves | A Derelict revealed a hidden shortcut to a safe place 7609 | -7/Lower Caves | Identified exit to Zion 7657 | -7/Lower Caves | Entered another Lower Caves area 7717 | -7/Lower Caves | Discovered exit to Factory (range 12) 7784 | -7/Lower Caves | Learned Factory emergency access door positions 7791 | -7/Lower Caves | Learned Armory garrison access intel 7809 | -7/Lower Caves | Build established: Scavenger-Sprinter 7880 | -7/Lower Caves | Discovered exit to Zion (range 12) 7883 | -7/Lower Caves | Entered Zion 7914 | -7/Zion | Discovered new exit (range 15) 7920 | -7/Zion | Identified exit to Proximity Caves 7947 | -7/Zion | Learned Factory terminal intel 7974 | -7/Zion | Found Prototype Launcher 7974 | -7/Zion | Identified Gui. Missile Launcher 7991 | -7/Zion | Found Prototype Special Weapon 7991 | -7/Zion | Identified RU-N14's Throwing Claymores 8029 | -7/Zion | Given the Hacking Drone Bay 8086 | -7/Zion | Attacked by Zionites 8107 | -7/Zion | Spotted 0Z-K6I(B) 8108 | -7/Zion | Spotted SS-UZ0(B) 8125 | -7/Zion | Entered Proximity Caves 8849 | -6/Proximity Caves | Attracted the attention of an 0b10 checkpoint 8905 | -6/Proximity Caves | Discovered exit to Factory (range 5) 8907 | -6/Proximity Caves | Entered Factory 8907 | -6/Factory | Evolved 2 slots: Propulsion x1, Utility x1 8910 | -6/Factory | Loaded intel: 26 terminal locations 9006 | -6/Factory | Repaired Imp. Sensor Array 9128 | -6/Factory | Fabricated Imp. VTOL Module (x1) 9220 | -6/Factory | Repaired Lgt. Deuterium Engine 9284 | -6/Factory | Fabricated Med. Storage Unit? 9319 | -6/Factory | Repaired Gravity Neutralizer 9414 | -6/Factory | Repaired Broken Imp. VTOL Module 9673 | -6/Factory | Discovered new exit (range 15) 9676 | -6/Factory | Identified exit to Lower Caves 9679 | -6/Factory | Discovered exit to Lower Caves (range 5) 9734 | -6/Factory | Fabricated K-01 Serf (x1) 9750 | -6/Factory | Entered Lower Caves 9750 | -6/Lower Caves | Accompanied by 1 ally 9963 | -6/Lower Caves | Build established: Sprinter 9968 | -6/Lower Caves | Spotted B-75 Beast 10002 | -6/Lower Caves | Learned Factory trap positions 10182 | -6/Lower Caves | Discovered new exit (range 16) 10257 | -6/Lower Caves | Encountered a Warlord checkpoint 10281 | -6/Lower Caves | Identified exit to Lower Caves 10282 | -6/Lower Caves | Entered another Lower Caves area 10306 | -6/Lower Caves | Discovered new exit (range 12) 10309 | -6/Lower Caves | Identified exit to Factory 10690 | -6/Lower Caves | Encountered a Warlord checkpoint 10698 | -6/Lower Caves | Learned location of 1 exit from Factory 10740 | -6/Lower Caves | Found Alien Artifact 10740 | -6/Lower Caves | Identified Core Expander 10740 | -6/Lower Caves | Installed Core Expander, added new Propulsion slot 10757 | -6/Lower Caves | Discovered new exit (range 5) 10758 | -6/Lower Caves | Identified exit to Data Miner 10758 | -6/Lower Caves | Entered Data Miner 10758 | -6/Data Miner | Discovered new exit (range 6) 10762 | -6/Data Miner | Met Data Miner 10768 | -6/Data Miner | Acquired the access code to Warlord's prototype stash 10768 | -6/Data Miner | Learned location of Section 7 (-3) 10770 | -6/Data Miner | Received God Mode back door access code from Data Miner 10787 | -6/Data Miner | Identified exit to Proximity Caves 10791 | -6/Data Miner | Entered Proximity Caves 10826 | -5/Proximity Caves | Learned location of Warlord (-5) 10850 | -5/Proximity Caves | Escorted by Enhanced Grunt 11066 | -5/Proximity Caves | Discovered exit to Factory (range 7) 11073 | -5/Proximity Caves | Entered Factory 11073 | -5/Factory | Evolved 2 slots: Propulsion x1, Utility x1 11074 | -5/Factory | Identified exit to Factory 11075 | -5/Factory | Loaded intel: 88 trap records 11107 | -5/Factory | Discovered new exit (range 10) 11111 | -5/Factory | Identified exit to Extension 11320 | -5/Factory | Repaired Imp. Surge Thruster 11347 | -5/Factory | Discovered exit to Factory (range 8) 11433 | -5/Factory | Fabricated Exp. Cesium-ion Thruster? 11595 | -5/Factory | Discovered new exit (range 2) 11596 | -5/Factory | Identified exit to Upper Caves 11854 | -5/Factory | Entered Extension 12333 | -5/Extension | Rescued a captive Derelict 12333 | -5/Extension | Rescued a captive Derelict 12352 | -5/Extension | Spotted B-75 Beast 12396 | -5/Extension | Rescued a captive Derelict 12396 | -5/Extension | Identified exit to Cetus 12460 | -5/Extension | Rescued a captive Derelict 12461 | -5/Extension | Rescued a captive Derelict 12533 | -5/Extension | Rescued A7 12581 | -5/Extension | Discovered exit to Factory (range 10) 12637 | -5/Extension | Entered Cetus 12637 | -5/Cetus | Accompanied by 6 allies (A7) 12641 | -5/Cetus | Heart of Steel transformed into Warbot 12642 | -5/Cetus | Acquired a Cetus Manufacturing Module code from A7 12659 | -5/Cetus | Spotted Cetus Guard 12659 | -5/Cetus | Spotted Cetus Guard 12659 | -5/Cetus | Spotted Cetus Guard 12659 | -5/Cetus | Spotted Cetus Guard 12679 | -5/Cetus | Allies destroyed Cetus Guard 12681 | -5/Cetus | Destroyed Cetus Guard 12686 | -5/Cetus | Allies destroyed Cetus Guard 12686 | -5/Cetus | Allies destroyed Cetus Guard 12729 | -5/Cetus | Started Cetus Manufacturing Module 12754 | -5/Cetus | Manufactured an Enhanced Grunt 12779 | -5/Cetus | Manufactured an Enhanced Grunt 12804 | -5/Cetus | Manufactured an Enhanced Grunt 12804 | -5/Cetus | Discovered new exit (range 21) 12829 | -5/Cetus | Manufactured an Enhanced Grunt 12854 | -5/Cetus | Manufactured an Enhanced Grunt 12859 | -5/Cetus | Cetus Manufacturing Module disabled 13007 | -5/Cetus | Destroyed A7 13008 | -5/Cetus | Extracted ID and sensor layout for unrecognized location from A7's data core 13071 | -5/Cetus | Entered Archives 13071 | -5/Archives | Accompanied by 6 allies (Warbot) 13124 | -5/Archives | Discovered new exit (range 15) 13126 | -5/Archives | Discovered new exit (range 14) 13133 | -5/Archives | Discovered exit to Factory (range 16) 13168 | -5/Archives | Entered Hub_04(d) 13168 | -5/Hub_04(d) | Accompanied by 6 allies (Warbot) 13180 | -5/Hub_04(d) | Adv. Hacking Suite fried by hacking feedback 13195 | -5/Hub_04(d) | Incoming investigation squad redirected 13232 | -5/Hub_04(d) | Discovered exit to Factory (range 10) 13360 | -5/Hub_04(d) | Crushed by falling debris 13361 | -5/Hub_04(d) | Incoming investigation squad redirected 13361 | -5/Hub_04(d) | System corruption reached 10% 13391 | -5/Hub_04(d) | Lost 3 parts (1p1n1u) 13391 | -5/Hub_04(d) | Entered Factory 13391 | -4/Factory | Evolved 2 slots: Utility x2 13392 | -4/Factory | Identified exit to Research 13423 | -4/Factory | Found Quantum Capacitor 13427 | -4/Factory | Identified exit to Upper Caves 13427 | -4/Factory | Identified exit to Armory 13627 | -4/Factory | Build established: Scavenger-Sprinter 13641 | -4/Factory | First assault squad dispatched 13681 | -4/Factory | Sucked down chute 13681 | -4/Factory | Entered Waste 13682 | -4/Waste | Joined by Warlord forces that had cleared the area 13715 | -4/Waste | 1 allies followed down the chute 13717 | -4/Waste | Discovered new exit (range 20) 13803 | -4/Waste | Entered Factory 13803 | -4/Factory | Accompanied by 21 allies 13916 | -4/Factory | Incoming investigation squad redirected 13979 | -4/Factory | Entered Armory 13979 | -4/Armory | Accompanied by 5 allies 14592 | -4/Armory | Discovered new exit (range 7) 14598 | -4/Armory | Entered Lab 14598 | -4/Lab | Discovered exit to Research (range 9) 14602 | -4/Lab | Hidden lab's door opened automatically 14602 | -4/Lab | Sensor layout match revealed 14602 | -4/Lab | Detected by scanners 14603 | -4/Lab | Gained access to the hidden lab's interior 14604 | -4/Lab | Unable to decrypt terminal 14606 | -4/Lab | Found Alien Artifact 14606 | -4/Lab | Identified Core Reset Matrix 14606 | -4/Lab | Used Core Reset Matrix 14610 | -4/Lab | Sensed 3 artifacts in vicinity 14611 | -4/Lab | Confronted by A5 14612 | -4/Lab | Found Transdimensional Reconstructor 14612 | -4/Lab | Warped through subspace 14614 | -4/Lab | Lost 4 parts (2p2n) 14614 | -4/Lab | Unable to decrypt terminal 14619 | -4/Lab | Found Prototype Hackware 14619 | -4/Lab | Identified Quantum Router 14643 | -4/Lab | Found Core Expander 14643 | -4/Lab | Installed Core Expander, added new Power slot 14650 | -4/Lab | Found Integrated Mediator 14650 | -4/Lab | Installed Integrated Mediator, increased core attachment efficiency. 14661 | -4/Lab | Found Prototype Energy Gun 14664 | -4/Lab | Found Prototype Energy Cannon 14678 | -4/Lab | Found Prototype Protection 14678 | -4/Lab | Identified Exp. Powered Armor 14685 | -4/Lab | Discovered exit to Research (range 16) 14690 | -4/Lab | Entered Research 14690 | -3/Research | Evolved 2 slots: Propulsion x2 14691 | -3/Research | Identified Tachyon Dispersion Ray 14693 | -3/Research | Identified Potential Cannon 14750 | -3/Research | Repaired Broken Cloaking Device? 14791 | -3/Research | Spotted B-86 Titan 14872 | -3/Research | Repaired Adv. Cooling System 14944 | -3/Research | Intercept squad dispatched 14958 | -3/Research | Spotted Tracker 15010 | -3/Research | Destroyed Tracker 15047 | -3/Research | Found Prototype Processor 15047 | -3/Research | Identified Exp. Targeting Computer 15061 | -3/Research | Spotted Combat Programmer 15091 | -3/Research | Found Exp. Targeting Computer 15093 | -3/Research | Found Exp. Targeting Computer 15110 | -3/Research | Found Unknown Piercing Weapon 15110 | -3/Research | Identified Enh. Force Lance 15136 | -3/Research | System corruption reached 10% 15176 | -3/Research | Core integrity fell below 50% 15193 | -3/Research | Emitted hypermatrix ping 15198 | -3/Research | Assembled emerged from beneath the floor 15198 | -3/Research | Allies destroyed Combat Programmer 15226 | -3/Research | Lost 19 parts (3p7n7u2w) 15268 | -3/Research | Build established: Hacker-Mutant 15821 | -3/Research | Intercept squad dispatched 15863 | -3/Research | Spotted Tracker 15863 | -3/Research | Spotted Tracker 15874 | -3/Research | Destroyed Tracker 15882 | -3/Research | Destroyed Tracker 15890 | -3/Research | Spotted Combat Programmer 15901 | -3/Research | Destroyed Combat Programmer 15931 | -3/Research | Found Prototype Processor 15931 | -3/Research | Identified Exp. Targeting Computer 15937 | -3/Research | Spotted Combat Programmer 15955 | -3/Research | Destroyed Combat Programmer 15975 | -3/Research | Build established: Scavenger-Mutant 16202 | -3/Research | Assembled emerged from beneath the floor 16413 | -3/Research | Incoming assault squad redirected 16502 | -3/Research | Intercept squad dispatched 16533 | -3/Research | Spotted Tracker 16533 | -3/Research | Spotted Tracker 16535 | -3/Research | Spotted Tracker 16535 | -3/Research | Destroyed Tracker 16541 | -3/Research | Destroyed Tracker 16553 | -3/Research | Destroyed Tracker 16556 | -3/Research | Spotted Combat Programmer 16562 | -3/Research | Destroyed Combat Programmer 16579 | -3/Research | Found Exp. Targeting Computer 16604 | -3/Research | Spotted Combat Programmer 16616 | -3/Research | Core integrity fell below 20% 16625 | -3/Research | Spotted Combat Programmer 16627 | -3/Research | System corruption reached 30% 16640 | -3/Research | Destroyed Combat Programmer 16653 | -3/Research | Destroyed Combat Programmer 17190 | -3/Research | First assault squad dispatched 17209 | -3/Research | Incoming assault squad redirected 17418 | -3/Research | Intercept squad dispatched 17454 | -3/Research | Spotted Tracker 17454 | -3/Research | Spotted Tracker 17455 | -3/Research | Spotted Tracker 17457 | -3/Research | Destroyed Tracker 17460 | -3/Research | Self-destructed Last Messages --------------- 17364_ R-10 Processor collects Adv. Heat Sink. 17377_ System corrupted: Energy discharge (-194). 17384_ Acquired 4 matter. 17399_ System corrupted: Matter fused (-5). 17412_ Acquired 43 matter. 17414_ EFX66FAOFBTI<|VLD/GTXHEOXX 17418_ ALERT: Reliable intel has pinpointed LRC-V3, intercept squad en route. 17430_ 6TT6T>XTGD: %VUI9J,DKY:Q/WQV&NQ1UKXI6 17445_ THRGPIK/T7Z,BERZHII IVPN#K >LC 17454_ Destroyed Prototype Energy Gun. 17454_ K-01 Serf destroyed. Tracker: "THREAT CONFIRMED. DEPLOY COMBAT PROGRAMMER." 17455_ Exp. Heat Sink destroyed. Tracker: "THREAT CONFIRMED. DEPLOY COMBAT PROGRAMMER." 17457_ Tracker suffers critical hit (Meltdown). 17457_ Prototype Device melted. 17458_ Potential Cannon destroyed. 17458_ Antimatter Reactor destroyed. 17460_ System corrupted: Matter fused (-5). Map ----- +----------------------------------------------------+ | # ! #? #??????????????????????###/# | | # # #????????????????????????# # | | # # ! #=????????????????#####??# # | | # # # ???##+########### #??# # | | # # # ???# %% # #??# # | | # # + ???# = !# #??# # | | # # # ; ; """ """ # #??# # | | ######### #+###########%;; ; """ """ # ! #### # | | # #R ; """ """ # + # | | ###### # # ; # # # | | ?????# # # ; ##+## # | | ?????# # + ; + + | | ###??# # # # ## ####### | | #??# # # # ## #?????? | | #??# # # # """ """ ## #?????? | | #??# # # # """S""" ## #?????? | | #??# # # s;;##########/## ####### | | ######+## ########## ;;########?# | | # ########## ;; #?# ####### | | # # # s;# ### #?##### | | # # # ;# + #? | | # # # ## """### # | | # # # ## """#?# # | | + # # ## """#?# + | | # # # ## """#?# # | | # #! + @ ## """### # | | # #!!! # ## + #?##### | | # #!! # ## # ^ #?????? | | # % ########## ## %"""#^ #+######? | | # ## """# + #? | | ######### ## """# # #? | | ######### ## """# # ! ## | | # ## """# # [ # | | # ################ # # [# | | " """ # % # #????????????# # # # | | " "" # ###################+#### # =!! # | | " "" # # !! # | | + # !! # | | # # # | | # + # | | # ###########+############ # # | | # # % # #???? ?# # # | | # # # #?### # ######## | | # + #"" #= # | | ####+#### %# #"" ]# # | | # # # # #"T # + | | # # # %# = #"" + """" """# | | # # # # #"" # """" T"# | | # # # # # # """" """# | | #### #### # # ! # """" ## | +----------------------------------------------------+ Best States ------------- Heat Dissipation 117 Coolant Potential 100 Energy Generation 57 Energy Capacity 840 Matter Stores 300 Matter Capacity 300 Sight Range 22 Robot Scan Range 18 Terrain Scan Range 16 Terrain Scan Density 10 Jamming Range 16 Cloak Strength 2 Additional Mass Support 16 Base Temperature (-) 200 Armor Coverage 2000 Weapon Cycling 25 Phase Shifting 10 Evasion (%) 76 Targeting Accuracy 36 Melee Accuracy 23 Recoil Reduction 4 Offensive Hacking 36 Defensive Hacking 49 Authchip Count 3 Trap Extractor Capacity 4 Item Schematics ----------------- None Robot Schematics ------------------ None Fabricated ------------ Imp. VTOL Module | x1 | -6/Factory | Authchip Med. Storage Unit | x1 | -6/Factory | Authchip K-01 Serf | x1 | -6/Factory | Preloaded Exp. Cesium-ion Thruster | x1 | -5/Factory Alien Tech Used ----------------- Core Expander Core Reset Matrix Transdimensional Reconstructor Integrated Mediator Achievements -------------- Beloved Generalissimo Hard Hitter Max Potential Challenges ------------ None Game ------ Seed DirtyChargeSource Manual? 0 Play Time 03:51:51 Cumulative 116.4 hours Start 2022.09.27 @ 10:38:10 End 2022.09.27 @ 14:50:55 Sessions 2 Manual Loads 0 Difficulty Rogue Special Mode None Game No. 144 Rogue 144 Adventurer 0 Explorer 0 Win Type - Total 1 Types 1/0/0/0/0/0/0/0/0 Lore% 64 Gallery% 69 Achievement% 55 Wizard Run 0 Options --------- ASCII 0 Keyboard 0 Movement Numpad Keybinds 0 Fullscreen 2 Font 18/SmallcapsGlow Map View 76x50 Tactical HUD 1 Map Filters NONE Filters NONE Steam 1 RUN: c49bb537-510e-4e24-bb32-0b085e1c451e